[Event "*** Titled Tuesday Blitz"]
[Site "Chess.com"]
[Date "2020.04.07"]
[Round "1"]
[White "LyonBeast"]
[Black "SahaNeelash"]
[Result "1-0"]
[WhiteElo "3001"]
[BlackElo "2486"]
[TimeControl "180+1"]
[EndTime "13:09:14 PDT"]
[Termination "LyonBeast won by resignation"]

1. b3 {[%clk 0:03:00.9]} 1... e5 {[%clk 0:02:59]} 2. Bb2 {[%clk 0:03:01]} 2...
Nc6 {[%clk 0:02:59.5]} 3. g3 {[%clk 0:03:01]} 3... Nf6 {[%clk 0:02:59.7]} 4. Bg2
{[%clk 0:03:01.2]} 4... d5 {[%clk 0:02:59.3]} 5. e3 {[%clk 0:03:01.4]} 5... Bd6
{[%clk 0:02:59.2]} 6. d3 {[%clk 0:03:00.8]} 6... O-O {[%clk 0:02:59.5]} 7. h3
{[%clk 0:03:01.1]} 7... Be6 {[%clk 0:02:57.9]} 8. Ne2 {[%clk 0:03:01.2]} 8...
Qd7 {[%clk 0:02:58.4]} 9. Nd2 {[%clk 0:03:01.4]} 9... Rae8 {[%clk 0:02:53]} 10.
a3 {[%clk 0:03:01.4]} 10... Ne7 {[%clk 0:02:52.3]} 11. c4 {[%clk 0:02:58.8]}
11... c6 {[%clk 0:02:50.5]} 12. Qc2 {[%clk 0:02:58.2]} 12... Bb8 {[%clk
0:02:49.8]} 13. e4 {[%clk 0:02:56.8]} 13... Ng6 {[%clk 0:02:35.3]} 14. Nf3
{[%clk 0:02:51.6]} 14... dxe4 {[%clk 0:02:20.3]} 15. dxe4 {[%clk 0:02:45.1]}
15... h6 {[%clk 0:02:17.5]} 16. Rd1 {[%clk 0:02:41.1]} 16... Qc8 {[%clk
0:02:17.3]} 17. h4 {[%clk 0:02:30]} 17... Bg4 {[%clk 0:02:14.6]} 18. O-O {[%clk
0:02:23.6]} 18... Bh3 {[%clk 0:02:08]} 19. Nh2 {[%clk 0:02:16.4]} 19... Bxg2
{[%clk 0:02:03.5]} 20. Kxg2 {[%clk 0:02:17.3]} 20... Ng4 {[%clk 0:02:00.1]} 21.
Bc1 {[%clk 0:01:58]} 21... Nxh2 {[%clk 0:01:35.3]} 22. Kxh2 {[%clk 0:01:58.9]}
22... Qe6 {[%clk 0:01:27.1]} 23. f3 {[%clk 0:01:51.6]} 23... Rd8 {[%clk
0:01:21.7]} 24. Be3 {[%clk 0:01:51.2]} 24... Qe7 {[%clk 0:01:20.1]} 25. b4
{[%clk 0:01:48]} 25... Rxd1 {[%clk 0:01:17.8]} 26. Rxd1 {[%clk 0:01:48.9]} 26...
Rd8 {[%clk 0:01:17.9]} 27. Nc1 {[%clk 0:01:48.4]} 27... Rd7 {[%clk 0:01:16.3]}
28. Nb3 {[%clk 0:01:39.2]} 28... b6 {[%clk 0:01:12.3]} 29. c5 {[%clk 0:01:36.3]}
29... b5 {[%clk 0:00:57.6]} 30. h5 {[%clk 0:01:33.9]} 30... Nf8 {[%clk
0:00:56.8]} 31. Na5 {[%clk 0:01:33.5]} 31... Qe6 {[%clk 0:00:50.7]} 32. Rxd7
{[%clk 0:01:31.7]} 32... Nxd7 {[%clk 0:00:51.1]} 33. Qb3 {[%clk 0:01:20.9]}
33... Qxb3 {[%clk 0:00:49.3]} 34. Nxb3 {[%clk 0:01:21.8]} 34... Bc7 {[%clk
0:00:49.7]} 35. g4 {[%clk 0:01:21.8]} 35... Kf8 {[%clk 0:00:49]} 36. Kg3 {[%clk
0:01:18.6]} 36... Ke7 {[%clk 0:00:48.5]} 37. f4 {[%clk 0:01:16.6]} 37... f6
{[%clk 0:00:45.6]} 38. Kf3 {[%clk 0:01:11.8]} 38... Ke6 {[%clk 0:00:39.8]} 39.
g5 {[%clk 0:01:04.2]} 39... fxg5 {[%clk 0:00:35.8]} 40. fxg5 {[%clk 0:01:05.1]}
40... hxg5 {[%clk 0:00:35.1]} 41. Bxg5 {[%clk 0:01:06]} 41... Nf8 {[%clk
0:00:34.9]} 42. Kg4 {[%clk 0:01:03.7]} 42... Nh7 {[%clk 0:00:27]} 43. Bh4 {[%clk
0:01:03.9]} 43... Nf8 {[%clk 0:00:26.7]} 44. Nd2 {[%clk 0:01:01.3]} 44... Kf7
{[%clk 0:00:26]} 45. Nf3 {[%clk 0:00:57.3]} 45... Ne6 {[%clk 0:00:22.3]} 46. Bg3
{[%clk 0:00:36.4]} 46... Kf6 {[%clk 0:00:20.3]} 47. Bf2 {[%clk 0:00:37]} 47...
Nf4 {[%clk 0:00:19.9]} 48. Bh4+ {[%clk 0:00:37.2]} 48... Kf7 {[%clk 0:00:19.9]}
49. Bg3 {[%clk 0:00:37.8]} 49... Nd3 {[%clk 0:00:19.2]} 50. Kf5 {[%clk
0:00:37.9]} 50... a5 {[%clk 0:00:18.9]} 51. Bxe5 {[%clk 0:00:33.3]} 51... Bd8
{[%clk 0:00:18.6]} 52. Bc3 {[%clk 0:00:32.3]} 52... axb4 {[%clk 0:00:18.6]} 53.
axb4 {[%clk 0:00:33.2]} 53... Bc7 {[%clk 0:00:18.7]} 54. e5 {[%clk 0:00:33.6]}
54... Ke7 {[%clk 0:00:19]} 55. e6 {[%clk 0:00:32.9]} 55... Nf4 {[%clk
0:00:19.5]} 56. Nd4 {[%clk 0:00:31.6]} 56... Nxh5 {[%clk 0:00:17.4]} 57. Nxc6+
{[%clk 0:00:31.7]} 57... Ke8 {[%clk 0:00:18]} 58. Nd4 {[%clk 0:00:30.7]} 58...
Nf4 {[%clk 0:00:17]} 59. Nxb5 {[%clk 0:00:30.3]} 59... g6+ {[%clk 0:00:17.4]}
60. Ke4 {[%clk 0:00:30.3]} 60... Nxe6 {[%clk 0:00:17.5]} 61. Nd4 {[%clk
0:00:27.4]} 61... Nd8 {[%clk 0:00:12]} 62. Kd5 {[%clk 0:00:26.4]} 62... Kd7
{[%clk 0:00:12.4]} 63. b5 {[%clk 0:00:26.7]} 63... Kc8 {[%clk 0:00:12.6]} 64.
Ne6 {[%clk 0:00:23.1]} 64... Nxe6 {[%clk 0:00:11.2]} 65. Kxe6 {[%clk 0:00:24]}
65... g5 {[%clk 0:00:11.8]} 66. Bd4 {[%clk 0:00:23.6]} 66... g4 {[%clk
0:00:11.8]} 67. c6 {[%clk 0:00:22.6]} 67... Bh2 {[%clk 0:00:10.7]} 68. b6 {[%clk
0:00:22.3]} 68... g3 {[%clk 0:00:11.2]} 69. Be5 {[%clk 0:00:20.8]} 1-0

[Event "*** Titled Tuesday Blitz"]
[Site "Chess.com"]
[Date "2020.04.07"]
[Round "1"]
[White "SanQui14"]
[Black "BeanScreen"]
[Result "0-1"]
[WhiteElo "2296"]
[BlackElo "2628"]
[TimeControl "180+1"]
[EndTime "13:09:55 PDT"]
[Termination "BeanScreen won by checkmate"]

1. d4 {[%clk 0:03:00.9]} 1... d5 {[%clk 0:02:55.9]} 2. c4 {[%clk 0:03:00]} 2...
dxc4 {[%clk 0:02:56.8]} 3. e3 {[%clk 0:02:59.8]} 3... e5 {[%clk 0:02:56]} 4.
Bxc4 {[%clk 0:02:59.9]} 4... exd4 {[%clk 0:02:56.1]} 5. Qxd4 {[%clk 0:03:00.6]}
5... Qxd4 {[%clk 0:02:55.8]} 6. exd4 {[%clk 0:03:01.5]} 6... Bd6 {[%clk
0:02:55.4]} 7. h3 {[%clk 0:03:00.7]} 7... Nf6 {[%clk 0:02:55.7]} 8. Nf3 {[%clk
0:03:01.1]} 8... O-O {[%clk 0:02:55.2]} 9. O-O {[%clk 0:03:01.7]} 9... Nc6
{[%clk 0:02:55.6]} 10. Nc3 {[%clk 0:03:01.8]} 10... Bf5 {[%clk 0:02:53.7]} 11.
Nb5 {[%clk 0:03:01.4]} 11... Rad8 {[%clk 0:02:50.6]} 12. Nxd6 {[%clk 0:02:57.8]}
12... Rxd6 {[%clk 0:02:51.5]} 13. Bf4 {[%clk 0:02:58.1]} 13... Rd7 {[%clk
0:02:49.4]} 14. Rad1 {[%clk 0:02:55.1]} 14... Be4 {[%clk 0:02:43.6]} 15. Ne5
{[%clk 0:02:53.7]} 15... Rxd4 {[%clk 0:02:41.8]} 16. Rxd4 {[%clk 0:02:38.8]}
16... Nxd4 {[%clk 0:02:42.7]} 17. Nxf7 {[%clk 0:02:27.5]} 17... Rxf7 {[%clk
0:02:38.1]} 18. Bxf7+ {[%clk 0:02:28.4]} 18... Kxf7 {[%clk 0:02:38.6]} 19. Bxc7
{[%clk 0:02:29.1]} 19... Bd5 {[%clk 0:02:19.6]} 20. b3 {[%clk 0:02:24.8]} 20...
Ke6 {[%clk 0:02:16.1]} 21. Re1+ {[%clk 0:02:22.5]} 21... Kd7 {[%clk 0:02:15.8]}
22. Be5 {[%clk 0:02:21.3]} 22... Nc6 {[%clk 0:02:14.6]} 23. Bb2 {[%clk
0:02:20.6]} 23... Nb4 {[%clk 0:02:11.9]} 24. Rd1 {[%clk 0:02:18.2]} 24... Kc6
{[%clk 0:02:10.8]} 25. a3 {[%clk 0:02:15.9]} 25... Na6 {[%clk 0:02:09.9]} 26. b4
{[%clk 0:02:13.2]} 26... Nc7 {[%clk 0:02:09]} 27. Re1 {[%clk 0:02:06.2]} 27...
Ne6 {[%clk 0:02:06.5]} 28. Be5 {[%clk 0:02:01.5]} 28... Kb5 {[%clk 0:01:59.2]}
29. Rd1 {[%clk 0:01:58.3]} 29... Bc6 {[%clk 0:01:57.4]} 30. Rd6 {[%clk
0:01:57.1]} 30... Ng5 {[%clk 0:01:28.8]} 31. Bxf6 {[%clk 0:01:55.8]} 31... gxf6
{[%clk 0:01:29.7]} 32. Rxf6 {[%clk 0:01:54.7]} 32... Ka4 {[%clk 0:01:29.9]} 33.
h4 {[%clk 0:01:51.7]} 33... Ne4 {[%clk 0:01:28.9]} 34. Rf7 {[%clk 0:01:48.2]}
34... Kxa3 {[%clk 0:01:28.7]} 35. b5 {[%clk 0:01:46.5]} 35... Bd5 {[%clk
0:01:27.5]} 36. Rxh7 {[%clk 0:01:43.6]} 36... Kb4 {[%clk 0:01:23.8]} 37. Rd7
{[%clk 0:01:42.2]} 37... Nc3 {[%clk 0:01:17.7]} 38. h5 {[%clk 0:01:39.1]} 38...
Kxb5 {[%clk 0:01:10.1]} 39. h6 {[%clk 0:01:38.7]} 39... Be4 {[%clk 0:01:09.5]}
40. Rxb7+ {[%clk 0:01:35.1]} 40... Bxb7 {[%clk 0:01:04.3]} 41. h7 {[%clk
0:01:35]} 41... a5 {[%clk 0:01:04.2]} 42. h8=Q {[%clk 0:01:34.7]} 42... Kc4
{[%clk 0:00:57.1]} 43. Qh4+ {[%clk 0:01:28.2]} 43... Kb3 {[%clk 0:00:56.5]} 44.
Qe7 {[%clk 0:01:25.7]} 44... Bd5 {[%clk 0:00:54.1]} 45. g4 {[%clk 0:01:14.6]}
45... a4 {[%clk 0:00:53]} 46. g5 {[%clk 0:01:14.9]} 46... a3 {[%clk 0:00:52.8]}
47. g6 {[%clk 0:01:14.3]} 47... a2 {[%clk 0:00:52.4]} 48. Qa7 {[%clk 0:00:44.2]}
48... Kb2 {[%clk 0:00:51]} 49. Qb6+ {[%clk 0:00:41.4]} 49... Bb3 {[%clk
0:00:50.9]} 50. g7 {[%clk 0:00:20.2]} 50... a1=Q+ {[%clk 0:00:48.6]} 51. Kh2
{[%clk 0:00:20.5]} 51... Qa8 {[%clk 0:00:42.9]} 52. f4 {[%clk 0:00:20.7]} 52...
Qd5 {[%clk 0:00:35.5]} 53. Qf2+ {[%clk 0:00:18.1]} 53... Bc2 {[%clk 0:00:28.4]}
54. Qg2 {[%clk 0:00:16.6]} 54... Qxg2+ {[%clk 0:00:24.1]} 55. Kxg2 {[%clk
0:00:16.9]} 55... Bb3 {[%clk 0:00:23.6]} 56. Kg3 {[%clk 0:00:17.1]} 56... Ne4+
{[%clk 0:00:21.9]} 57. Kg4 {[%clk 0:00:17.4]} 57... Kc3 {[%clk 0:00:21.7]} 58.
f5 {[%clk 0:00:16.9]} 58... Kd4 {[%clk 0:00:20.6]} 59. Kh5 {[%clk 0:00:17.4]}
59... Bf7+ {[%clk 0:00:17.2]} 60. Kh6 {[%clk 0:00:16.4]} 60... Ke5 {[%clk
0:00:16.6]} 61. Kh7 {[%clk 0:00:16.3]} 61... Nf6+ {[%clk 0:00:16.2]} 62. Kh8
{[%clk 0:00:11.7]} 62... Kxf5 {[%clk 0:00:16.3]} 63. g8=Q {[%clk 0:00:10.3]}
63... Bxg8 {[%clk 0:00:16.3]} 64. Kg7 {[%clk 0:00:10.9]} 64... Bd5 {[%clk
0:00:16.3]} 65. Kh8 {[%clk 0:00:11.4]} 65... Ng4 {[%clk 0:00:15.4]} 66. Kg7
{[%clk 0:00:11.4]} 66... Ne5 {[%clk 0:00:14.7]} 67. Kh8 {[%clk 0:00:11.9]} 67...
Kf6 {[%clk 0:00:13.6]} 68. Kh7 {[%clk 0:00:11.8]} 68... Ng6 {[%clk 0:00:14]} 69.
Kh6 {[%clk 0:00:12.2]} 69... Bg8 {[%clk 0:00:14.9]} 70. Kh5 {[%clk 0:00:12.5]}
70... Ne5 {[%clk 0:00:14.5]} 71. Kh4 {[%clk 0:00:12.7]} 71... Kf5 {[%clk
0:00:14.7]} 72. Kg3 {[%clk 0:00:13.1]} 72... Ng4 {[%clk 0:00:14.3]} 73. Kg2
{[%clk 0:00:13.5]} 73... Bc4 {[%clk 0:00:12.8]} 74. Kf3 {[%clk 0:00:12.2]} 74...
Ba6 {[%clk 0:00:12.1]} 75. Kg3 {[%clk 0:00:11.2]} 75... Bb7 {[%clk 0:00:11.5]}
76. Kh4 {[%clk 0:00:11.6]} 76... Kf4 {[%clk 0:00:09.7]} 77. Kh5 {[%clk 0:00:12]}
77... Be4 {[%clk 0:00:09.9]} 78. Kh4 {[%clk 0:00:11.5]} 78... Bg6 {[%clk
0:00:10]} 79. Kh3 {[%clk 0:00:12.4]} 79... Ne3 {[%clk 0:00:10.2]} 80. Kh4 {[%clk
0:00:12.3]} 80... Ng2+ {[%clk 0:00:10.2]} 81. Kh3 {[%clk 0:00:12.8]} 81... Kf3
{[%clk 0:00:11.1]} 82. Kh2 {[%clk 0:00:13.5]} 82... Bf5 {[%clk 0:00:11.6]} 83.
Kg1 {[%clk 0:00:13.6]} 83... Ne3 {[%clk 0:00:11.6]} 84. Kh2 {[%clk 0:00:13.4]}
84... Kf2 {[%clk 0:00:11.9]} 85. Kh1 {[%clk 0:00:13.4]} 85... Be6 {[%clk
0:00:12.8]} 86. Kh2 {[%clk 0:00:13.8]} 86... Nf1+ {[%clk 0:00:13.7]} 87. Kh1
{[%clk 0:00:13.9]} 87... Bd5# {[%clk 0:00:14.6]} 0-1

[Event "*** Titled Tuesday Blitz"]
[Site "Chess.com"]
[Date "2020.04.07"]
[Round "1"]
[White "VALPARAISO37"]
[Black "Shahinyan_ChessMood"]
[Result "0-1"]
[WhiteElo "2329"]
[BlackElo "2658"]
[TimeControl "180+1"]
[EndTime "13:10:15 PDT"]
[Termination "Shahinyan_ChessMood won on time"]

1. d4 {[%clk 0:03:00.8]} 1... e6 {[%clk 0:02:59.3]} 2. c4 {[%clk 0:03:00.3]}
2... f5 {[%clk 0:02:58.9]} 3. e3 {[%clk 0:02:59.9]} 3... Nf6 {[%clk 0:02:57]} 4.
Nc3 {[%clk 0:02:58.3]} 4... d5 {[%clk 0:02:54.6]} 5. Bd3 {[%clk 0:02:56.2]} 5...
c6 {[%clk 0:02:52.3]} 6. Qc2 {[%clk 0:02:55.3]} 6... Bd6 {[%clk 0:02:52.2]} 7.
f3 {[%clk 0:02:53.7]} 7... O-O {[%clk 0:02:51.4]} 8. Nge2 {[%clk 0:02:52.4]}
8... Na6 {[%clk 0:02:50.5]} 9. a3 {[%clk 0:02:51.7]} 9... Nc7 {[%clk 0:02:49.2]}
10. Bd2 {[%clk 0:02:51.2]} 10... dxc4 {[%clk 0:02:48.1]} 11. Bxc4 {[%clk
0:02:50.5]} 11... b5 {[%clk 0:02:49]} 12. Ba2 {[%clk 0:02:50.1]} 12... Kh8
{[%clk 0:02:46.8]} 13. O-O {[%clk 0:02:44.5]} 13... a5 {[%clk 0:02:44.3]} 14. h3
{[%clk 0:02:42.5]} 14... Ba6 {[%clk 0:02:40.9]} 15. Rae1 {[%clk 0:02:35]} 15...
b4 {[%clk 0:02:40.4]} 16. Nb1 {[%clk 0:02:33.4]} 16... Ncd5 {[%clk 0:02:29.3]}
17. Bc4 {[%clk 0:02:31.1]} 17... Bxc4 {[%clk 0:02:26.2]} 18. Qxc4 {[%clk
0:02:31.2]} 18... Qb6 {[%clk 0:02:27.1]} 19. Qd3 {[%clk 0:02:20.6]} 19... c5
{[%clk 0:02:25.6]} 20. e4 {[%clk 0:02:18.7]} 20... c4 {[%clk 0:02:12.2]} 21.
Qxc4 {[%clk 0:02:15.3]} 21... fxe4 {[%clk 0:02:13.1]} 22. axb4 {[%clk
0:02:08.4]} 22... axb4 {[%clk 0:02:12.3]} 23. Qb3 {[%clk 0:01:51.8]} 23... Ra1
{[%clk 0:01:46.8]} 24. Kh1 {[%clk 0:01:45.9]} 24... Qa6 {[%clk 0:01:40.2]} 25.
fxe4 {[%clk 0:01:40.9]} 25... Nxe4 {[%clk 0:01:41.1]} 26. Rxf8+ {[%clk
0:01:40.5]} 26... Bxf8 {[%clk 0:01:41.8]} 27. Qc2 {[%clk 0:01:24.1]} 27... Nxd2
{[%clk 0:01:04.7]} 28. Qxd2 {[%clk 0:01:18.2]} 28... Bd6 {[%clk 0:01:05.2]} 29.
Rc1 {[%clk 0:01:08.1]} 29... h6 {[%clk 0:01:02.9]} 30. Qc2 {[%clk 0:01:04.8]}
30... Ne3 {[%clk 0:00:58.6]} 31. Qg6 {[%clk 0:00:54.3]} 31... Bf8 {[%clk
0:00:10.2]} 32. Qe8 {[%clk 0:00:40.5]} 32... Qxe2 {[%clk 0:00:07.9]} 33. Qxf8+
{[%clk 0:00:37.2]} 33... Kh7 {[%clk 0:00:08.8]} 34. Qf3 {[%clk 0:00:34]} 34...
Qxf3 {[%clk 0:00:07.9]} 35. gxf3 {[%clk 0:00:33.9]} 35... Nc4 {[%clk 0:00:06.8]}
36. Kg2 {[%clk 0:00:28.6]} 36... Nd2 {[%clk 0:00:04.3]} 37. Rd1 {[%clk
0:00:25.9]} 37... Nxb1 {[%clk 0:00:03.8]} 38. Kg3 {[%clk 0:00:25.1]} 38... Kg6
{[%clk 0:00:04.2]} 39. Kf4 {[%clk 0:00:23]} 39... Kf6 {[%clk 0:00:04.7]} 40. h4
{[%clk 0:00:22.6]} 40... g5+ {[%clk 0:00:04.8]} 41. hxg5+ {[%clk 0:00:22.9]}
41... hxg5+ {[%clk 0:00:05.7]} 42. Kg4 {[%clk 0:00:23.5]} 42... Kg6 {[%clk
0:00:05.5]} 43. Re1 {[%clk 0:00:23.8]} 43... Kf6 {[%clk 0:00:05.4]} 44. Rd1
{[%clk 0:00:23.2]} 44... b3 {[%clk 0:00:05.7]} 45. Re1 {[%clk 0:00:22.8]} 45...
Ra4 {[%clk 0:00:02.1]} 46. Rxb1 {[%clk 0:00:22.2]} 46... Rxd4+ {[%clk 0:00:03]}
47. Kg3 {[%clk 0:00:23]} 47... Rd2 {[%clk 0:00:03.9]} 48. f4 {[%clk 0:00:22.7]}
48... Rd3+ {[%clk 0:00:02.1]} 49. Kg4 {[%clk 0:00:20.5]} 49... Rd4 {[%clk
0:00:02.6]} 50. Kf3 {[%clk 0:00:21]} 50... Rxf4+ {[%clk 0:00:02.8]} 51. Ke3
{[%clk 0:00:21.7]} 51... Rh4 {[%clk 0:00:03.2]} 52. Rf1+ {[%clk 0:00:19.7]}
52... Ke5 {[%clk 0:00:03.5]} 53. Kd3 {[%clk 0:00:18.8]} 53... Rh3+ {[%clk
0:00:02.9]} 54. Kc4 {[%clk 0:00:18.7]} 54... g4 {[%clk 0:00:03.8]} 55. Re1+
{[%clk 0:00:19.1]} 55... Kf5 {[%clk 0:00:04]} 56. Rf1+ {[%clk 0:00:19.6]} 56...
Kg5 {[%clk 0:00:04.5]} 57. Re1 {[%clk 0:00:20.1]} 57... Kf5 {[%clk 0:00:04.5]}
58. Rf1+ {[%clk 0:00:20.3]} 58... Ke4 {[%clk 0:00:05.1]} 59. Re1+ {[%clk
0:00:20.8]} 59... Re3 {[%clk 0:00:05.7]} 60. Rg1 {[%clk 0:00:20]} 60... g3
{[%clk 0:00:06.2]} 61. Rg2 {[%clk 0:00:19.7]} 61... e5 {[%clk 0:00:06.4]} 62.
Rd2 {[%clk 0:00:19.5]} 62... Kf3 {[%clk 0:00:06.2]} 63. Rd7 {[%clk 0:00:19.2]}
63... g2 {[%clk 0:00:06.4]} 64. Rg7 {[%clk 0:00:18.7]} 64... Ke2 {[%clk
0:00:06.8]} 65. Rxg2+ {[%clk 0:00:17.7]} 65... Kd1 {[%clk 0:00:07]} 66. Kb4
{[%clk 0:00:16]} 66... Rd3 {[%clk 0:00:05.8]} 67. Ka3 {[%clk 0:00:15.7]} 67...
e4 {[%clk 0:00:05.9]} 68. Rg1+ {[%clk 0:00:16.1]} 68... Kc2 {[%clk 0:00:05]} 69.
Rg2+ {[%clk 0:00:16.4]} 69... Kd1 {[%clk 0:00:04.4]} 70. Rg1+ {[%clk 0:00:16.4]}
70... Ke2 {[%clk 0:00:04.9]} 71. Rg2+ {[%clk 0:00:16.5]} 71... Kf3 {[%clk
0:00:05.3]} 72. Rh2 {[%clk 0:00:15.8]} 72... e3 {[%clk 0:00:05.5]} 73. Rh3+
{[%clk 0:00:16.3]} 73... Kf2 {[%clk 0:00:05.1]} 74. Rh2+ {[%clk 0:00:16.3]}
74... Kg3 {[%clk 0:00:05.5]} 75. Re2 {[%clk 0:00:16]} 75... Kf3 {[%clk
0:00:04.9]} 76. Rh2 {[%clk 0:00:16]} 76... e2 {[%clk 0:00:05.3]} 77. Rh1 {[%clk
0:00:16.3]} 77... Kf2 {[%clk 0:00:03.7]} 78. Rh2+ {[%clk 0:00:15.7]} 78... Kf1
{[%clk 0:00:04.2]} 79. Rh1+ {[%clk 0:00:15.9]} 79... Kg2 {[%clk 0:00:04.5]} 80.
Re1 {[%clk 0:00:15.5]} 80... Kf2 {[%clk 0:00:04.8]} 81. Rxe2+ {[%clk 0:00:14.3]}
81... Kxe2 {[%clk 0:00:05.7]} 82. Kb4 {[%clk 0:00:14.3]} 82... Kd2 {[%clk
0:00:06.6]} 83. Kc4 {[%clk 0:00:14.5]} 83... Kc2 {[%clk 0:00:07.5]} 84. Kb4
{[%clk 0:00:13.6]} 84... Kxb2 {[%clk 0:00:07.6]} 85. Kc4 {[%clk 0:00:14.2]}
85... Kc2 {[%clk 0:00:08.5]} 0-1